Workbook

Sheet Лист1

Sheet Лист2

Sheet Лист3
E1: Приложение 4
E3: к решению совета депутатов
E4: муниципального образования
E5: Старопольское сельское поселение
E6: Сланцевского муниципального района
E7: Ленинградской области
E8: от 02.08.2013 № 243
A10: РАСПРЕДЕЛЕНИЕ
A11: расходов местного бюджета по разделам, подразделам, целевым статьям расходов,
A12: видам расходов функциональной классификации расходов Российской Федерации
A13: СТАРОПОЛЬСКОЕ СЕЛЬСКОЕ ПОСЕЛЕНИЕ СЛАНЦЕВСКОГО МУНИЦИПАЛЬНОГО РАЙОНА
A14: Ленинградской области на 2013 год
A16: тыс. руб.
A17: Наименование | B17: КФСР | C17: КЦСР | D17: КВР | E17: Бюджетные ассигнования на год
A20: Общегосударственные вопросы | B20: 0100 | E20: =E21+E27+E34+E37+E41+E44+E47 -> 4317.2
A21: Функционирование законодательных (представительных) органов государственной власти и представительных органов муниципальных образований | B21: 0103 | E21: 216.2
A22: Местная администрация и ее структурные подразделения | B22: 0103 | C22: 0020400 | E22: =E23 -> 200.1
A23: Выполнение функций органами местного самоуправления | B23: 0103 | C23: 0020400 | D23: 500 | E23: 200.1
A24: Межбюджетные трансферты бюджетам муниципальных районов из бюджетов поселений и межбюджетные трансферты бюджетам поселений из бюджетов муниципальных районов на осуществление части полномочий по решению вопросов местного значения в соответствии с заключенными соглашениями | B24: 0103 | C24: 5210600 | E24: =E25 -> 16.1
A25: Межбюджетные трансферты бюджетам муниципальных районов из бюджетов поселений на осуществление части полномочий по решению вопросов местного значения в части контрольно-счетного органа поселения | B25: 0103 | C25: 5210602 | E25: =E26 -> 16.1
A26: Иные межбюджетные трансферты | B26: 0103 | C26: 5210602 | D26: 017 | E26: 16.1
A27: Функционирование Правительства Российской Федерации, высших исполнительных органов государственной власти субъектов Российской Федерации, местных администраций | B27: 0104 | E27: =E28+E30+E32 -> 4051
A28: Местная администрация и ее структурные подразделения | B28: 0104 | C28: 0020400 | E28: =E29 -> 3975.8
A29: Выполнение функций органами местного самоуправления | B29: 0104 | C29: 0020400 | D29: 500 | E29: 3975.8
A30: Глава местной администрации (исполнительно-распорядительного органа муниципального образования) | B30: 0104 | C30: 0020800 | E30: =E31 -> 65.2
A31: Выполнение функций органами местного самоуправления | B31: 0104 | C31: 0020800 | D31: 500 | E31: 65.2
A32: Осуществление отдельного государственного полномочия Ленинградсской области в сфере административных правоотношений | B32: 0104 | C32: 5210223 | E32: 10
A33: Выполнение функций органами местного самоуправления | B33: 0104 | C33: 5210223 | D33: 500 | E33: 10
A34: Осуществление деятельности финансовых, налоговых и таможенных органов и органов финансового (финансово-бюджетного) надзора | B34: 0106 | E34: =E35 -> 0
A35: Межбюджетные трансферты бюджетам муниципальных районов из бюджетов поселений и межбюджетные трансферты бюджетам поселений из бюджетов муниципальных районов на осуществление части полномочий по решению вопросов местного значения в соответствии с заключенными соглашениями | B35: 0106 | C35: 5210600 | E35: =E36 -> 0
A36: Иные межбюджетные трансферты | B36: 0106 | C36: 5210600 | D36: 017
A37: Обеспечение проведения выборов и референдумов | B37: 0107 | E37: =E38 -> 0
A38: Проведение выборов и референдумов | B38: 0107 | C38: 0200000 | E38: =E39 -> 0
A39: Проведение выборов в представительные органы муниципального образования | B39: 0107 | C39: 0200002 | E39: =E40 -> 0
A40: Выполнение функций органами местного самоуправления | B40: 0107 | C40: 0200002 | D40: 500
A41: Резервные фонды | B41: 0111 | E41: =E42 -> 10
A42: Резервные фонды местных администраций по ликвидации чрезвичайных ситуаций | B42: 0111 | C42: 0700502 | E42: =E43 -> 10
A43: Прочие расходы | B43: 0111 | C43: 0700502 | D43: 013 | E43: 10
A44: Другие общегосударственные вопросы | B44: 0113 | E44: =E45+E49+E47 -> 40
A45: Выполнение других обязательств муниципальных образований | B45: 0113 | C45: 0920300 | E45: =E46 -> 40
A46: Выполнение функций органами местного самоуправления | B46: 0113 | C46: 0920300 | D46: 500 | E46: 40
A47: Обеспечение мероприятий по реформированию государственной и муниципальной службы | B47: 0113 | C47: 0928400 | E47: =E48 -> 0
A48: Выполнение функций органами местного самоуправления | B48: 0113 | C48: 0928400 | D48: 500
A49: Целевые программы муниципальных образований | B49: 0113 | C49: 7950000 | E49: =E50 -> 0
A50: Выполнение функций органами местного самоуправления | B50: 0113 | C50: 7950000 | D50: 500
A51: Национальная оборона | B51: 0200 | E51: =E52 -> 200
A52: Мобилизационная и вневойсковая подготовка | B52: 0203 | E52: =E53 -> 200
A53: Руководство и управление в сфере установленных функций | B53: 0203 | C53: 0010000 | E53: =E54 -> 200
A54: Осуществление первичного воинского учета на территориях, где отсутствуют военные комиссариаты | B54: 0203 | C54: 0013600 | E54: =E55 -> 200
A55: Выполнение функций органами местного самоуправления | B55: 0203 | C55: 0013600 | D55: 500 | E55: 200
A56: Национальная безопасность и правоохранительная деятельность | B56: 0300 | E56: =E57+E60 -> 676
A57: Органы внутренних дел | B57: 0302 | E57: =E58 -> 0
A58: Пособия и компенсации военнослужащим, приравненным к ним лицам, а также уволенным из их числа | B58: 0302 | C58: 2027600 | E58: =E59 -> 0
A59: Социальные выплаты | B59: 0302 | C59: 2027600 | D59: 005
A60: Защита населения и территории от чрезвычайных ситуаций природного и техногенного характера, гражданская оборона | B60: 0309 | E60: =E61+E63+E66 -> 676
A61: Предупреждение и ликвидация последствий чрезвычайных ситуаций и стихийных бедствий природного и техногенного характера | B61: 0309 | C61: 2180100 | E61: =E62 -> 646
A62: Выполнение функций органами местного самоуправления | B62: 0309 | C62: 2180100 | D62: 500 | E62: 646
A63: Подготовка населения и организаций к действиям в чрезвычайной ситуации в мирное и военное время | B63: 0309 | C63: 2190100 | E63: =E64 -> 0
A64: Функционирование органов в сфере национальной безопасности, правоохранительной деятельности и обороны | B64: 0309 | C64: 2190100 | D64: 500
A65: Целевые программы муниципальных образований | B65: 0309 | C65: 7950000 | E65: =E66 -> 30
A66: Муниципальная целевая программа "Обеспечение первичных мер пожарной безопасности на территории муниципального образования Старопольское сельское поселение на 2011-2015 гг" | B66: 0309 | C66: 7951406 | E66: =E67 -> 30
A67: Выполнение функций органами местного самоуправления | B67: 0309 | C67: 7951406 | D67: 500 | E67: 30
A68: Национальная экономика | B68: 0400 | E68: =E72+E75+E69 -> 1670
A69: Общеэкономические вопросы | B69: 0401 | E69: =E70 -> 0
A70: Осуществление полномочий Российской Федерации в области содействия занятости населения, включая расходы по осуществлению этих полномочий | B70: 0401 | C70: 5100200 | E70: =E71 -> 0
A71: Выполнение функций органами местного самоуправления | B71: 0401 | C71: 5100200 | D71: 500 | E71: 0
A72: Дорожное хозяйство (дорожные фонды) | B72: 0409 | E72: =E73 -> 1430
A73: Ремонт и содержание автомобильных дорог местного значения | B73: 0409 | C73: 3150110 | E73: =E74 -> 1430
A74: Выполнение функций органами местного самоуправления | B74: 0409 | C74: 3150110 | D74: 500 | E74: 1430
A75: Другие вопросы в области национальной экономики | B75: 0412 | E75: =E78+E76 -> 240
A76: Мероприятия в области строительства,архитектуры и градостроительства | B76: 0412 | C76: 3380000 | E76: =E77 -> 0
A77: Выполнение функций органами местного самоуправления | B77: 0412 | C77: 3380000 | D77: 500 | E77: 0
A78: Мероприятия по землеустройству и землепользованию | B78: 0412 | C78: 3400300 | E78: =E79 -> 240
A79: Выполнение функций органами местного самоуправления | B79: 0412 | C79: 3400300 | D79: 500 | E79: 240
A80: Жилищно-коммунальное хозяйство | B80: 0500 | E80: =E81+E103+E121 -> 1945.3
A81: Жилищное хозяйство | B81: 0501 | E81: =E82+E89+E91+E100 -> 234
A82: Обеспечение мероприятий по капитальному ремонту многоквартирных домов и переселению граждан из аварийного жилищного фонда | B82: 0501 | C82: 0980000 | E82: =E83+E86 -> 0
A83: Обеспечение мероприятий по капитальному ремонту многоквартирных домов и переселению граждан из аварийного жилищного фонда за счет средств, поступивших от государственной корпорации Фонд содействия реформированию жилищно-коммунального хозяйства | B83: 0501 | C83: 0980100 | E83: =E84 -> 0
A84: Обеспечение мероприятий по капитальному ремонту многоквартирных домов за счет средств, поступивших от государственной корпорации Фонд содействия реформированию жилищно-коммунального хозяйства | B84: 0501 | C84: 0980101 | E84: =E85 -> 0
A85: Субсидии юридическим лицам | B85: 0501 | C85: 0980101 | D85: 006
A86: Обеспечение мероприятий по капитальному ремонту многоквартирных домов и переселению граждан из аварийного жилищного фонда за счет средств бюджетов | B86: 0501 | C86: 0980200 | E86: =E87 -> 0
A87: Обеспечение мероприятий по капитальному ремонту многоквартирных домов за счет средств бюджетов | B87: 0501 | C87: 0980201 | E87: =E88 -> 0
A88: Субсидии юридическим лицам | B88: 0501 | C88: 0980201 | D88: 006 | E88: 0
A89: Переселение граждан из жилищного фонда, признанного непригодным для проживания, и (или) жилищного фонда с высоким уровнем износа (более 70 процентов) | B89: 0501 | C89: 1040400 | E89: =E90 -> 0
A90: Бюджетные инвестиции | B90: 0501 | C90: 1040400 | D90: 003
A91: Поддержка жилищного хозяйства | B91: 0501 | C91: 3500000 | E91: =E92+E94 -> 234
A92: Капитальный ремонт государственного жилищного фонда субъектов Российской Федерации и муниципального жилищного фонда | B92: 0501 | C92: 3500200 | E92: =E93 -> 0
A93: Выполнение функций органами местного самоуправления | B93: 0501 | C93: 3500200 | D93: 500 | E93: 0
A94: Мероприятия в области жилищного хозяйства | B94: 0501 | C94: 3500300 | E94: =E95+E99+E97 -> 234
A95: Субсидии юридическим лицам | B95: 0501 | C95: 3500300 | D95: 006 | E95: 0
A96: Прочие мероприятия в области жилищного хозяйства | B96: 0501 | C96: 3500301 | E96: =E97 -> 234
A97: Выполнение функций органами местного самоуправления | B97: 0501 | C97: 3500301 | D97: 500 | E97: 234
A100: Целевые программы муниципальных образований | B100: 0501 | C100: 7950000 | E100: =E101+E102 -> 0
A101: Бюджетные инвестиции | B101: 0501 | C101: 7950000 | D101: 003
A102: Выполнение функций органами местного самоуправления | B102: 0501 | C102: 7950000 | D102: 500
A103: Коммунальное хозяйство | B103: 0502 | E103: =E104+E107+E116+E119 -> 390.5
A104: Бюджетные инвестиции в объекты капитального строительства собственности муниципальных образований | B104: 0502 | C104: 1020102 | E104: =E105+E106 -> 0
A105: Бюджетные инвестиции | B105: 0502 | C105: 1020102 | D105: 003
A106: Выполнение функций органами местного самоуправления | B106: 0502 | C106: 1020102 | D106: 500
A107: Поддержка коммунального хозяйства | B107: 0502 | C107: 3510000 | E107: =E108+E110+E112 -> 390.5
A108: Компенсация выпадающих доходов организациям, предоставляющим населению услуги теплоснабжения по тарифам, не обеспечивающим возмещение издержек | B108: 0502 | C108: 3510200 | E108: =E109 -> 0
A109: Субсидии юридическим лицам | B109: 0502 | C109: 3510200 | D109: 006 | E109: =4200-4200 -> 0
A110: Компенсация выпадающих доходов организациям, предоставляющим населению услуги водоснабжения и водоотведения по тарифам, не обеспечивающим возмещение издержек | B110: 0502 | C110: 3510300 | E110: =E111 -> 0
A111: Субсидии юридическим лицам | B111: 0502 | C111: 3510300 | D111: 006
A112: Мероприятия в области коммунального хозяйства | B112: 0502 | C112: 3510500 | E112: =E115+E113 -> 390.5
A113: Субсидии юридическим лицам | B113: 0502 | C113: 3510500 | D113: 006 | E113: 0
A114: Прочие мероприятия в области коммунального хозяйства | B114: 0502 | C114: 3510505 | E114: =E115 -> 390.5
A115: Выполнение функций органами местного самоуправления | B115: 0502 | C115: 3510505 | D115: 500 | E115: 390.5
A116: Региональные целевые программы | B116: 0502 | C116: 5220000 | E116: =E117 -> 0
A117: Региональная целевая программа "Предупредждение ситуаций, связанных с нарушением функционирования объектов жилищно-коммунального хозяйства Ленинградской области, в в 2008-2011 годах" | B117: 0502 | C117: 5226800 | E117: =E118 -> 0
A118: Бюджетные инвестиции | B118: 0502 | C118: 5226800 | D118: 003 | E118: =93.7-93.7 -> 0
A119: Целевые программы муниципальных образований | B119: 0502 | C119: 7950000 | E119: =E120 -> 0
A120: Бюджетные инвестиции | B120: 0502 | C120: 7950000 | D120: 003
A121: Благоустройство | B121: 0503 | E121: =E122+E124+E126+E128+E130+E132 -> 1320.8
A122: Уличное освещение | B122: 0503 | C122: 6000100 | E122: =E123 -> 520
A123: Выполнение функций органами местного самоуправления | B123: 0503 | C123: 6000100 | D123: 500 | E123: 520
A124: Строительство и содержание автомобильных дорог и инженерных сооружений на них в границах городских округов и поселений в рамках благоустройства | B124: 0503 | C124: 6000200 | E124: =E125 -> 0
A125: Выполнение функций органами местного самоуправления | B125: 0503 | C125: 6000200 | D125: 500 | E125: 0
A126: Озеленение | B126: 0503 | C126: 6000300 | E126: =E127 -> 70
A127: Выполнение функций органами местного самоуправления | B127: 0503 | C127: 6000300 | D127: 500 | E127: 70
A128: Организация и содержание мест захоронения | B128: 0503 | C128: 6000400 | E128: =E129 -> 73
A129: Выполнение функций органами местного самоуправления | B129: 0503 | C129: 6000400 | D129: 500 | E129: 73
A130: Прочие мероприятия по благоустройству городских округов и поселений | B130: 0503 | C130: 6000500 | E130: =E131 -> 657.8
A131: Выполнение функций органами местного самоуправления | B131: 0503 | C131: 6000500 | D131: 500 | E131: 657.8
A132: Целевые программы муниципальных образований | B132: 0503 | C132: 7950000 | E132: =E133+E134 -> 0
A133: Бюджетные инвестиции | B133: 0503 | C133: 7950000 | D133: 003
A134: Выполнение функций органами местного самоуправления | B134: 0503 | C134: 7950000 | D134: 500
A135: Образование | B135: 0700 | E135: =E136 -> 31.3
A136: Молодежная политика и оздоровление детей | B136: 0707 | E136: =E137+E140 -> 31.3
A137: Проведение мероприятий для детей и молодежи | B137: 0707 | C137: 4310100 | E137: =E138 -> 31.3
A138: Организация занятости детей и молодежи | B138: 0707 | C138: 4310102 | E138: =E139 -> 31.3
A139: Выполнение функций органами местного самоуправления | B139: 0707 | C139: 4310102 | D139: 500 | E139: 31.3
A140: Целевые программы муниципальных образований | B140: 0707 | C140: 7950000 | E140: =E141 -> 0
A141: Проведение мероприятий для детей и молодежи | B141: 0707 | C141: 7950000 | D141: 447
A142: Культура и кинематография | B142: 0800 | E142: =E143 -> 16928
A143: Культура | B143: 0801 | E143: =E144+E147+E150 -> 16928
A144: Дворцы и дома культуры, другие учреждения культуры и средств массовой информации | B144: 0801 | C144: 4400000 | E144: =E145 -> 7000.8
A145: Обеспечение деятельности подведомственных учреждений | B145: 0801 | C145: 4409900 | E145: =E146 -> 7000.8
A146: Выполнение функций казенными учреждениями | B146: 0801 | C146: 4409900 | D146: 001 | E146: 7000.8
A147: Региональные целевые программы | B147: 0801 | C147: 5220000 | E147: =E148 -> 9000
A148: Капитальный ремонт сельских учреждений культуры в рамках реализации региональной целевой программы "Социальное развитие села на 2009-2013 годы" | B148: 0801 | C148: 5220400 | E148: =E149 -> 9000
A149: Выполнение функций казенными учреждениями | B149: 0801 | C149: 5224104 | D149: 001 | E149: 9000
A150: Библиотеки | B150: 0801 | C150: 4420000 | E150: =E151 -> 927.2
A151: Обеспечение деятельности подведомственных учреждений | B151: 0801 | C151: 4429900 | E151: =E152 -> 927.2
A152: Выполнение функций казенными учреждениями | B152: 0801 | C152: 4429900 | D152: 001 | E152: 927.2
A153: Мероприятия в сфере культуры, кинематографии и средств массовой информации | B153: 0801 | C153: 4500000 | E153: =E154 -> 0
A154: Комплектование книжных фондов библиотек муниципальных образований | B154: 0801 | C154: 4500600 | E154: =E155 -> 0
A155: Выполнение функций бюджетными учреждениями | B155: 0801 | C155: 4500600 | D155: 001
A156: Региональные целевые программы | B156: 0801 | C156: 5220000 | E156: =E157+E158 -> 0
A157: Мероприятия в сфере культуры | B157: 0801 | C157: 5220000 | D157: 023 | E157: =65+6-71 -> 0
A158: Капитальный ремонт сельских учреждений культуры в рамках реализации региональной целевой программы "Социальное развитие села до 2010 года" | B158: 0801 | C158: 5224104 | E158: =E159 -> 0
A159: Мероприятия в сфере культуры | B159: 0801 | C159: 5224104 | D159: 024 | E159: =30.6-30.6 -> 0
A160: Целевые программы муниципальных образований | B160: 0801 | C160: 7950000 | E160: =E162 -> 0
A161: Муниципальная целевая программа "Обеспечение первичных мер пожарной безопасности на территории муниципального образования Старопольское сельское поселение на 2011-2015 гг" | B161: 0801 | C161: 7951406 | E161: =E162 -> 0
A162: Мероприятия в сфере культуры | B162: 0801 | C162: 7950000 | D162: 024 | E162: 0
A163: Социальная политика | B163: 1000 | E163: =E164+E167 -> 118.3
A164: Пенсионное обеспечение | B164: 1001 | E164: =E165 -> 118.3
A165: Доплаты к пенсиям муниципальных служащих | B165: 1001 | C165: 4910100 | E165: =E166 -> 118.3
A166: Социальные выплаты | B166: 1001 | C166: 4910100 | D166: 005 | E166: 118.3
A167: Социальное обеспечение населения | B167: 1003 | E167: =E170+E168 -> 0
A168: Подпрограмма «Обеспечение жильем молодых семей» | B168: 1003 | C168: 1040200 | E168: =E169 -> 0
A169: Субсидии на обеспечение жильем | B169: 1003 | C169: 1040200 | D169: 501
A170: Мероприятия в области социальной политики | B170: 1003 | C170: 5053300 | E170: =E171 -> 0
A171: Социальные выплаты | B171: 1003 | C171: 5053300 | D171: 005 | E171: 0
A172: Физическая культура и спорт | B172: 1100 | E172: =E173 -> 0
A173: Массовый спорт | B173: 1102 | E173: =E174+E176 -> 0
A174: Мероприятия в области здравоохранения, спорта и физической культуры, туризма | B174: 1102 | C174: 5129700 | E174: =E175 -> 0
A175: Выполнение функций органами местного самоуправления | B175: 1102 | C175: 5129700 | D175: 500
A176: Целевые программы муниципальных образований | B176: 1102 | C176: 7950000 | E176: =E177 -> 0
A177: Мероприятия в области здравоохранения, спорта и физической культуры | B177: 1102 | C177: 7950000 | D177: 079
A178: Обслуживание государственного и муниципального долга | B178: 1300 | E178: =E179 -> 0.7
A179: Обслуживание внутреннего государственного и муниципального долга | B179: 1301 | E179: =E180 -> 0.7
A180: Процентные платежи по муниципальному долгу | B180: 1301 | C180: 0650300 | E180: =E181 -> 0.7
A181: Прочие расходы | B181: 1301 | C181: 0650300 | D181: 013 | E181: 0.7
A182: ИТОГО | E182: =E51+E56+E68+E135+E142+E163+E172+E178+E80+E20 -> 25886.8
